[Event "Late-Titled-Tuesday-Blitz-February-06-2024"]
[Site "Chess.com"]
[Date "2024.02.06"]
[Round "1"]
[White "Seochesspie"]
[Black "sari07"]
[Result "0-1"]
[WhiteElo "2787"]
[BlackElo "2437"]
[TimeControl "180+1"]
[EndTime "14:08:34 PST"]
[Termination "sari07 won on time"]

1. e4 {[%clk 0:03:00.9]} 1... e5 {[%clk 0:02:58.1]} 2. Nf3 {[%clk 0:03:01]} 2...
Nc6 {[%clk 0:02:58]} 3. Bb5 {[%clk 0:03:01.1]} 3... a6 {[%clk 0:02:57.9]} 4. Ba4
{[%clk 0:03:01.3]} 4... Nf6 {[%clk 0:02:57.8]} 5. O-O {[%clk 0:03:01.2]} 5...
Be7 {[%clk 0:02:55.3]} 6. d3 {[%clk 0:03:00.3]} 6... b5 {[%clk 0:02:54.3]} 7.
Bb3 {[%clk 0:03:00.6]} 7... d6 {[%clk 0:02:53.4]} 8. c3 {[%clk 0:02:58.4]} 8...
O-O {[%clk 0:02:53.2]} 9. Re1 {[%clk 0:02:58.5]} 9... Na5 {[%clk 0:02:53.1]} 10.
Bc2 {[%clk 0:02:58.5]} 10... c5 {[%clk 0:02:53.7]} 11. Nbd2 {[%clk 0:02:58.1]}
11... Re8 {[%clk 0:02:53]} 12. Nf1 {[%clk 0:02:56.7]} 12... Bf8 {[%clk
0:02:53.1]} 13. Ng3 {[%clk 0:02:54.8]} 13... g6 {[%clk 0:02:53.1]} 14. h3 {[%clk
0:02:51.9]} 14... Bg7 {[%clk 0:02:48.4]} 15. a4 {[%clk 0:02:49.1]} 15... b4
{[%clk 0:02:40.6]} 16. Be3 {[%clk 0:02:47.1]} 16... Rb8 {[%clk 0:02:37]} 17. Nd2
{[%clk 0:02:46.7]} 17... Be6 {[%clk 0:02:29.8]} 18. Qe2 {[%clk 0:02:44.3]} 18...
bxc3 {[%clk 0:02:25.7]} 19. bxc3 {[%clk 0:02:44.2]} 19... Rb2 {[%clk 0:02:26.2]}
20. Rec1 {[%clk 0:02:40.3]} 20... Qd7 {[%clk 0:02:15.2]} 21. Qd1 {[%clk
0:02:32.2]} 21... h5 {[%clk 0:02:10.9]} 22. Rcb1 {[%clk 0:02:25.3]} 22... Reb8
{[%clk 0:02:09.3]} 23. Rxb2 {[%clk 0:02:25.1]} 23... Rxb2 {[%clk 0:02:10.2]} 24.
Qc1 {[%clk 0:02:25.3]} 24... Qb7 {[%clk 0:01:53.4]} 25. Rb1 {[%clk 0:02:21.7]}
25... Rxb1 {[%clk 0:01:53.1]} 26. Qxb1 {[%clk 0:02:21.7]} 26... Qxb1+ {[%clk
0:01:51.8]} 27. Bxb1 {[%clk 0:02:20.4]} 27... Nd7 {[%clk 0:01:45.1]} 28. Bc2
{[%clk 0:01:48.4]} 28... Nb6 {[%clk 0:01:44.5]} 29. Ne2 {[%clk 0:01:43.7]} 29...
Bd7 {[%clk 0:01:42.8]} 30. d4 {[%clk 0:01:43.5]} 30... exd4 {[%clk 0:01:39.3]}
31. cxd4 {[%clk 0:01:43.6]} 31... cxd4 {[%clk 0:01:19.2]} 32. Bxd4 {[%clk
0:01:34.9]} 32... Nxa4 {[%clk 0:01:14.7]} 33. Bxg7 {[%clk 0:01:25.4]} 33... Kxg7
{[%clk 0:01:14.2]} 34. Bxa4 {[%clk 0:01:25.3]} 34... Bxa4 {[%clk 0:01:13.1]} 35.
Nc3 {[%clk 0:01:26.2]} 35... Bc6 {[%clk 0:01:09.1]} 36. Kf1 {[%clk 0:01:26.3]}
36... Kf6 {[%clk 0:01:07.8]} 37. Ke2 {[%clk 0:01:26.4]} 37... Bb5+ {[%clk
0:00:57.5]} 38. Ke3 {[%clk 0:01:20.9]} 38... Nc4+ {[%clk 0:00:55.9]} 39. Nxc4
{[%clk 0:01:13.1]} 39... Bxc4 {[%clk 0:00:56.8]} 40. h4 {[%clk 0:01:11.7]} 40...
a5 {[%clk 0:00:44.5]} 41. Kd4 {[%clk 0:01:10.5]} 41... Bb3 {[%clk 0:00:43.8]}
42. g3 {[%clk 0:01:03.8]} 42... a4 {[%clk 0:00:43.3]} 43. Nb1 {[%clk 0:01:03.8]}
43... g5 {[%clk 0:00:37.8]} 44. Na3 {[%clk 0:01:00.8]} 44... gxh4 {[%clk
0:00:37]} 45. gxh4 {[%clk 0:01:00.9]} 45... Ke6 {[%clk 0:00:35.5]} 46. Nb5
{[%clk 0:00:58.9]} 46... Bd1 {[%clk 0:00:25.5]} 47. f4 {[%clk 0:00:58.9]} 47...
Bb3 {[%clk 0:00:23.7]} 48. f5+ {[%clk 0:00:57.6]} 48... Ke7 {[%clk 0:00:23.5]}
49. Na3 {[%clk 0:00:57.1]} 49... Kd7 {[%clk 0:00:20.4]} 50. Nb5 {[%clk 0:00:57]}
50... Kc6 {[%clk 0:00:20.7]} 51. Na3 {[%clk 0:00:57.6]} 51... Kb6 {[%clk
0:00:20.9]} 52. Nb1 {[%clk 0:00:29.5]} 52... Kb5 {[%clk 0:00:19.6]} 53. Kc3
{[%clk 0:00:29.4]} 53... Kc5 {[%clk 0:00:19.7]} 54. Nd2 {[%clk 0:00:25.9]} 54...
f6 {[%clk 0:00:18.4]} 55. Nf1 {[%clk 0:00:15.8]} 55... Bf7 {[%clk 0:00:17]} 56.
Ng3 {[%clk 0:00:11.5]} 56... a3 {[%clk 0:00:16.9]} 57. Ne2 {[%clk 0:00:10.3]}
57... a2 {[%clk 0:00:16.7]} 58. Kb2 {[%clk 0:00:10.7]} 58... Kc4 {[%clk
0:00:16.7]} 59. Nf4 {[%clk 0:00:06]} 59... Kd4 {[%clk 0:00:15.5]} 60. Ne6+
{[%clk 0:00:06.2]} 60... Kxe4 {[%clk 0:00:14.4]} 61. Ng7 {[%clk 0:00:06.3]}
61... Ke5 {[%clk 0:00:12.6]} 62. Ka1 {[%clk 0:00:05.1]} 62... Kf4 {[%clk
0:00:12.2]} 63. Kb2 {[%clk 0:00:01.8]} 63... Kg4 {[%clk 0:00:12.4]} 64. Ne6
{[%clk 0:00:02.5]} 64... Kxf5 {[%clk 0:00:12.3]} 0-1

[Event "Late-Titled-Tuesday-Blitz-February-06-2024"]
[Site "Chess.com"]
[Date "2024.02.06"]
[Round "1"]
[White "marianokar"]
[Black "Rsnr"]
[Result "0-1"]
[WhiteElo "2482"]
[BlackElo "2904"]
[TimeControl "180+1"]
[EndTime "14:08:41 PST"]
[Termination "Rsnr won by resignation"]

1. b3 {[%clk 0:02:53]} 1... d5 {[%clk 0:02:56.5]} 2. Bb2 {[%clk 0:02:53.9]} 2...
c6 {[%clk 0:02:56.8]} 3. g3 {[%clk 0:02:53]} 3... Bf5 {[%clk 0:02:57.3]} 4. Nf3
{[%clk 0:02:52.5]} 4... e6 {[%clk 0:02:57.8]} 5. Bg2 {[%clk 0:02:52.8]} 5... Nf6
{[%clk 0:02:56.2]} 6. O-O {[%clk 0:02:52.9]} 6... h6 {[%clk 0:02:56.6]} 7. d3
{[%clk 0:02:53]} 7... Be7 {[%clk 0:02:56.6]} 8. c4 {[%clk 0:02:52.5]} 8... O-O
{[%clk 0:02:56]} 9. Nbd2 {[%clk 0:02:52.9]} 9... a5 {[%clk 0:02:56.3]} 10. a3
{[%clk 0:02:52.8]} 10... Bh7 {[%clk 0:02:57]} 11. Rc1 {[%clk 0:02:51.1]} 11...
Nbd7 {[%clk 0:02:57.3]} 12. Rc2 {[%clk 0:02:50.8]} 12... Re8 {[%clk 0:02:45.3]}
13. Qa1 {[%clk 0:02:50.4]} 13... Qb6 {[%clk 0:02:46]} 14. Ne5 {[%clk 0:02:42.3]}
14... Bf8 {[%clk 0:02:33.3]} 15. Nxd7 {[%clk 0:01:46.9]} 15... Nxd7 {[%clk
0:02:34.2]} 16. Rb1 {[%clk 0:01:43]} 16... f6 {[%clk 0:02:13.4]} 17. Bc3 {[%clk
0:01:34.1]} 17... Bc5 {[%clk 0:02:09.2]} 18. Rf1 {[%clk 0:01:26]} 18... Bg6
{[%clk 0:02:09]} 19. Rcc1 {[%clk 0:01:17.4]} 19... Bf7 {[%clk 0:01:59]} 20. d4
{[%clk 0:01:12.4]} 20... Bf8 {[%clk 0:01:58.4]} 21. c5 {[%clk 0:01:12.6]} 21...
Qa6 {[%clk 0:01:57.8]} 22. e4 {[%clk 0:01:09.9]} 22... a4 {[%clk 0:01:55.5]} 23.
b4 {[%clk 0:01:08.4]} 23... Rad8 {[%clk 0:01:30.1]} 24. Rfe1 {[%clk 0:01:08.2]}
24... b5 {[%clk 0:01:13.2]} 25. e5 {[%clk 0:01:01.1]} 25... Qc8 {[%clk
0:01:10.5]} 26. exf6 {[%clk 0:00:55.4]} 26... gxf6 {[%clk 0:01:11.4]} 27. f4
{[%clk 0:00:55.7]} 27... Bg6 {[%clk 0:01:09.8]} 28. Re3 {[%clk 0:00:53.2]} 28...
Nb8 {[%clk 0:01:01.3]} 29. Rce1 {[%clk 0:00:53]} 29... Na6 {[%clk 0:01:01.8]}
30. Nf3 {[%clk 0:00:51.7]} 30... Nc7 {[%clk 0:01:01.7]} 31. Nh4 {[%clk
0:00:50.8]} 31... Bh7 {[%clk 0:01:00.8]} 32. Qd1 {[%clk 0:00:46.1]} 32... Qd7
{[%clk 0:00:59.5]} 33. Qh5 {[%clk 0:00:35.7]} 33... Qf7 {[%clk 0:00:51.1]} 34.
Qxf7+ {[%clk 0:00:35.1]} 34... Kxf7 {[%clk 0:00:52]} 35. f5 {[%clk 0:00:35.5]}
35... exf5 {[%clk 0:00:46.5]} 36. Rxe8 {[%clk 0:00:34.9]} 36... Rxe8 {[%clk
0:00:47.4]} 37. Rxe8 {[%clk 0:00:34.7]} 37... Nxe8 {[%clk 0:00:48.3]} 38. Bd2
{[%clk 0:00:33.3]} 38... Nc7 {[%clk 0:00:34.5]} 39. Bh3 {[%clk 0:00:32.8]} 39...
Ne6 {[%clk 0:00:31.5]} 40. Be3 {[%clk 0:00:32.9]} 40... Ng5 {[%clk 0:00:25.7]}
41. Bxf5 {[%clk 0:00:29.6]} 41... Bxf5 {[%clk 0:00:20.7]} 42. Bxg5 {[%clk
0:00:26.4]} 42... Bc2 {[%clk 0:00:06.4]} 43. Bf4 {[%clk 0:00:25.4]} 43... h5
{[%clk 0:00:07.1]} 44. Kf2 {[%clk 0:00:25.3]} 44... Ke6 {[%clk 0:00:07.7]} 45.
Ke3 {[%clk 0:00:25.2]} 45... Bg7 {[%clk 0:00:07.5]} 46. Nf3 {[%clk 0:00:22.4]}
46... Be4 {[%clk 0:00:07.6]} 47. Nd2 {[%clk 0:00:21.5]} 47... Bg2 {[%clk
0:00:08]} 48. Kf2 {[%clk 0:00:20]} 48... Bh3 {[%clk 0:00:08.5]} 49. Kf3 {[%clk
0:00:17.9]} 49... Kf5 {[%clk 0:00:08.5]} 50. Ke3 {[%clk 0:00:15.9]} 50... Bg2
{[%clk 0:00:06]} 51. Nf3 {[%clk 0:00:15.5]} 51... Kg4 {[%clk 0:00:05.2]} 52. Nh4
{[%clk 0:00:15]} 52... Be4 {[%clk 0:00:05.3]} 53. Kf2 {[%clk 0:00:13.9]} 53...
Bf8 {[%clk 0:00:03.6]} 54. Ng2 {[%clk 0:00:12.9]} 54... Kh3 {[%clk 0:00:03.8]}
55. Ne3 {[%clk 0:00:12.7]} 55... Kxh2 {[%clk 0:00:03.2]} 56. g4+ {[%clk
0:00:12.6]} 56... Kh3 {[%clk 0:00:03.9]} 57. gxh5 {[%clk 0:00:13.1]} 57... Kh4
{[%clk 0:00:04.7]} 58. h6 {[%clk 0:00:13.6]} 58... Kh5 {[%clk 0:00:05.3]} 59.
Nxd5 {[%clk 0:00:11.8]} 59... Bxd5 {[%clk 0:00:02.9]} 60. h7 {[%clk 0:00:11.4]}
60... Bg7 {[%clk 0:00:03.6]} 61. Kg3 {[%clk 0:00:08.1]} 61... Kg6 {[%clk
0:00:04]} 62. Kg4 {[%clk 0:00:07.3]} 62... f5+ {[%clk 0:00:04.7]} 63. Kh4 {[%clk
0:00:06.6]} 63... Bxd4 {[%clk 0:00:05.6]} 64. Bd6 {[%clk 0:00:04.1]} 64... Kxh7
{[%clk 0:00:05.8]} 65. Be5 {[%clk 0:00:04.7]} 65... Bxe5 {[%clk 0:00:05.9]} 0-1

[Event "Late-Titled-Tuesday-Blitz-February-06-2024"]
[Site "Chess.com"]
[Date "2024.02.06"]
[Round "1"]
[White "GP9isback23"]
[Black "Doublekk14"]
[Result "1/2-1/2"]
[WhiteElo "2624"]
[BlackElo "2319"]
[TimeControl "180+1"]
[EndTime "14:08:55 PST"]
[Termination "Game drawn - insufficient material"]

1. d4 {[%clk 0:03:00]} 1... Nf6 {[%clk 0:02:58.3]} 2. Nf3 {[%clk 0:02:58.9]}
2... e6 {[%clk 0:02:58.2]} 3. c4 {[%clk 0:02:57.5]} 3... d5 {[%clk 0:02:57.7]}
4. Nc3 {[%clk 0:02:55]} 4... c5 {[%clk 0:02:57.3]} 5. cxd5 {[%clk 0:02:53.9]}
5... exd5 {[%clk 0:02:56]} 6. g3 {[%clk 0:02:53.4]} 6... h6 {[%clk 0:02:55.5]}
7. Bg2 {[%clk 0:02:53]} 7... Nc6 {[%clk 0:02:55.3]} 8. O-O {[%clk 0:02:51.3]}
8... Be6 {[%clk 0:02:48]} 9. dxc5 {[%clk 0:02:30.6]} 9... Bxc5 {[%clk
0:02:47.1]} 10. Na4 {[%clk 0:02:30.2]} 10... Be7 {[%clk 0:02:40.7]} 11. Be3
{[%clk 0:02:28.7]} 11... Qa5 {[%clk 0:02:39.6]} 12. Nd4 {[%clk 0:02:18]} 12...
O-O {[%clk 0:02:28.3]} 13. Rc1 {[%clk 0:02:16.4]} 13... Rac8 {[%clk 0:02:25.2]}
14. Nxc6 {[%clk 0:02:16.3]} 14... bxc6 {[%clk 0:02:22.1]} 15. Bc5 {[%clk
0:01:51.9]} 15... Rfe8 {[%clk 0:02:14.1]} 16. Bxe7 {[%clk 0:01:48.6]} 16... Rxe7
{[%clk 0:02:13.6]} 17. Rc5 {[%clk 0:01:47.9]} 17... Qb4 {[%clk 0:02:06.8]} 18.
b3 {[%clk 0:01:28.1]} 18... Ne4 {[%clk 0:02:03.2]} 19. Bxe4 {[%clk 0:01:18.9]}
19... Qxe4 {[%clk 0:02:01.2]} 20. Qd3 {[%clk 0:01:17.5]} 20... Qxd3 {[%clk
0:01:42.4]} 21. exd3 {[%clk 0:01:17.3]} 21... Bh3 {[%clk 0:01:38.3]} 22. Rb1
{[%clk 0:01:06]} 22... Rce8 {[%clk 0:01:32.9]} 23. Rcc1 {[%clk 0:01:02.7]} 23...
Re2 {[%clk 0:01:24.5]} 24. Nc5 {[%clk 0:00:52]} 24... Rxa2 {[%clk 0:01:19.1]}
25. Ra1 {[%clk 0:00:51.8]} 25... Ree2 {[%clk 0:01:11.5]} 26. Rxa2 {[%clk
0:00:48.3]} 26... Rxa2 {[%clk 0:01:06.4]} 27. b4 {[%clk 0:00:44.1]} 27... Rb2
{[%clk 0:01:04.1]} 28. Na6 {[%clk 0:00:41.6]} 28... Rb3 {[%clk 0:00:54]} 29. d4
{[%clk 0:00:41]} 29... Rd3 {[%clk 0:00:53.9]} 30. Nb8 {[%clk 0:00:17.1]} 30...
Rxd4 {[%clk 0:00:49.3]} 31. Nxc6 {[%clk 0:00:16.8]} 31... Rc4 {[%clk 0:00:44.5]}
32. Ne7+ {[%clk 0:00:03.5]} 32... Kf8 {[%clk 0:00:40.1]} 33. Re1 {[%clk
0:00:04.4]} 33... Be6 {[%clk 0:00:35.4]} 34. Nxd5 {[%clk 0:00:02.1]} 34... Bxd5
{[%clk 0:00:35.2]} 35. h4 {[%clk 0:00:02.6]} 35... Rxb4 {[%clk 0:00:35.1]} 36.
Ra1 {[%clk 0:00:02.9]} 36... Rb7 {[%clk 0:00:34.1]} 37. f4 {[%clk 0:00:01.5]}
37... f5 {[%clk 0:00:32.9]} 38. Kf2 {[%clk 0:00:02.4]} 38... Be4 {[%clk
0:00:29.4]} 39. Ke3 {[%clk 0:00:03.3]} 39... Ke7 {[%clk 0:00:29.2]} 40. Kd4
{[%clk 0:00:04.2]} 40... Kd6 {[%clk 0:00:26.9]} 41. Ra6+ {[%clk 0:00:03.9]}
41... Bc6 {[%clk 0:00:26.8]} 42. h5 {[%clk 0:00:04.4]} 42... Rb4+ {[%clk
0:00:19.4]} 43. Ke3 {[%clk 0:00:03.7]} 43... Rb3+ {[%clk 0:00:19.1]} 44. Kd4
{[%clk 0:00:03.8]} 44... Rxg3 {[%clk 0:00:18.1]} 45. Rxa7 {[%clk 0:00:04.7]}
45... Rg4 {[%clk 0:00:17.6]} 46. Ke3 {[%clk 0:00:03.3]} 46... Rg3+ {[%clk
0:00:15.1]} 47. Kd4 {[%clk 0:00:02.9]} 47... Bd7 {[%clk 0:00:14.6]} 48. Ra6+
{[%clk 0:00:02.6]} 48... Ke7 {[%clk 0:00:14.7]} 49. Ke5 {[%clk 0:00:02.9]} 49...
Re3+ {[%clk 0:00:11.5]} 50. Kd4 {[%clk 0:00:03.1]} 50... Re6 {[%clk 0:00:11.4]}
51. Ra5 {[%clk 0:00:02.1]} 51... Kf6 {[%clk 0:00:10.9]} 52. Kd3 {[%clk 0:00:02]}
52... Be8 {[%clk 0:00:10.8]} 53. Rc5 {[%clk 0:00:01.7]} 53... Bxh5 {[%clk
0:00:09.1]} 54. Rc7 {[%clk 0:00:02.6]} 54... Bg4 {[%clk 0:00:08.8]} 55. Kd4
{[%clk 0:00:01.7]} 55... h5 {[%clk 0:00:05.3]} 56. Kd3 {[%clk 0:00:01.9]} 56...
h4 {[%clk 0:00:05.4]} 57. Rc1 {[%clk 0:00:02.8]} 57... h3 {[%clk 0:00:05.5]} 58.
Rh1 {[%clk 0:00:02.7]} 58... Rd6+ {[%clk 0:00:05.7]} 59. Ke3 {[%clk 0:00:02.7]}
59... Re6+ {[%clk 0:00:06.6]} 60. Kf2 {[%clk 0:00:02.6]} 60... Re4 {[%clk
0:00:07.2]} 61. Kg3 {[%clk 0:00:03]} 61... Re3+ {[%clk 0:00:07.8]} 62. Kh4
{[%clk 0:00:03.4]} 62... Rf3 {[%clk 0:00:08.7]} 63. Ra1 {[%clk 0:00:03.1]} 63...
Rxf4 {[%clk 0:00:08.9]} 64. Ra6+ {[%clk 0:00:03]} 64... Ke5 {[%clk 0:00:09.4]}
65. Kg5 {[%clk 0:00:03.6]} 65... Ke4 {[%clk 0:00:09.5]} 66. Ra4+ {[%clk
0:00:03.8]} 66... Ke3 {[%clk 0:00:09.7]} 67. Rxf4 {[%clk 0:00:03.9]} 67... h2
{[%clk 0:00:09.8]} 68. Rf1 {[%clk 0:00:04.2]} 68... Bf3 {[%clk 0:00:09.5]} 69.
Kxf5 {[%clk 0:00:03.5]} 69... h1=Q {[%clk 0:00:08.5]} 70. Rxh1 {[%clk
0:00:03.9]} 70... Bxh1 {[%clk 0:00:08.2]} 71. Kg6 {[%clk 0:00:04.8]} 71... Be4+
{[%clk 0:00:08.2]} 72. Kxg7 {[%clk 0:00:05.7]} 1/2-1/2

[Event "Late-Titled-Tuesday-Blitz-February-06-2024"]
[Site "Chess.com"]
[Date "2024.02.06"]
[Round "1"]
[White "ChadBiryani"]
[Black "GadimbayliA"]
[Result "1-0"]
[WhiteElo "2461"]
[BlackElo "2809"]
[TimeControl "180+1"]
[EndTime "14:09:01 PST"]
[Termination "ChadBiryani won by resignation"]

1. d4 {[%clk 0:03:00.9]} 1... d5 {[%clk 0:03:00.1]} 2. Bg5 {[%clk 0:03:00]} 2...
h6 {[%clk 0:02:59]} 3. Bh4 {[%clk 0:03:00.1]} 3... c6 {[%clk 0:02:59.7]} 4. e3
{[%clk 0:03:00.2]} 4... Qb6 {[%clk 0:03:00.6]} 5. Qc1 {[%clk 0:03:00.5]} 5... e5
{[%clk 0:03:01.2]} 6. Nf3 {[%clk 0:02:58.1]} 6... e4 {[%clk 0:03:00.9]} 7. Nfd2
{[%clk 0:02:57.6]} 7... Be6 {[%clk 0:03:01.1]} 8. c4 {[%clk 0:02:56.2]} 8... Nd7
{[%clk 0:03:01.7]} 9. Nc3 {[%clk 0:02:55.9]} 9... Be7 {[%clk 0:03:01.1]} 10. Bg3
{[%clk 0:02:53.3]} 10... Ngf6 {[%clk 0:03:00.8]} 11. Be2 {[%clk 0:02:53.8]}
11... O-O {[%clk 0:03:00.6]} 12. O-O {[%clk 0:02:53]} 12... Rac8 {[%clk
0:02:53.3]} 13. c5 {[%clk 0:02:51.3]} 13... Qd8 {[%clk 0:02:53.3]} 14. b4 {[%clk
0:02:52]} 14... b6 {[%clk 0:02:52.9]} 15. h3 {[%clk 0:02:51.2]} 15... a5 {[%clk
0:02:51.1]} 16. a3 {[%clk 0:02:49]} 16... b5 {[%clk 0:02:51.5]} 17. Qb2 {[%clk
0:02:46.1]} 17... a4 {[%clk 0:02:41]} 18. f3 {[%clk 0:02:43.7]} 18... exf3
{[%clk 0:02:40]} 19. Bxf3 {[%clk 0:02:43]} 19... Re8 {[%clk 0:02:40]} 20. Rae1
{[%clk 0:02:42.8]} 20... Bf8 {[%clk 0:02:37]} 21. e4 {[%clk 0:02:39.7]} 21...
dxe4 {[%clk 0:02:37.9]} 22. Ndxe4 {[%clk 0:02:39.3]} 22... Bc4 {[%clk
0:02:34.9]} 23. Be2 {[%clk 0:02:31.7]} 23... Bxe2 {[%clk 0:01:00.5]} 24. Rxe2
{[%clk 0:02:32.6]} 24... Nh7 {[%clk 0:00:53.4]} 25. Ref2 {[%clk 0:02:12.5]}
25... Ndf6 {[%clk 0:00:51.8]} 26. Nd6 {[%clk 0:02:12.5]} 26... Bxd6 {[%clk
0:00:50.4]} 27. Bxd6 {[%clk 0:02:13.4]} 27... Qd7 {[%clk 0:00:51]} 28. d5 {[%clk
0:01:51.8]} 28... cxd5 {[%clk 0:00:48.5]} 29. Qd2 {[%clk 0:01:47.9]} 29... Re6
{[%clk 0:00:33.2]} 30. Qd4 {[%clk 0:01:39.1]} 30... Qc6 {[%clk 0:00:29.2]} 31.
Rf5 {[%clk 0:01:27.1]} 31... Rxd6 {[%clk 0:00:25.5]} 32. cxd6 {[%clk 0:01:25.5]}
32... Qxc3 {[%clk 0:00:26.4]} 33. Qxc3 {[%clk 0:01:17.6]} 33... Rxc3 {[%clk
0:00:27.3]} 34. Rxf6 {[%clk 0:01:18.1]} 34... Nxf6 {[%clk 0:00:23.7]} 35. Rxf6
{[%clk 0:01:17.4]} 35... Rc8 {[%clk 0:00:08.5]} 36. d7 {[%clk 0:01:17.2]} 36...
Rd8 {[%clk 0:00:09.1]} 37. Rd6 {[%clk 0:01:17.9]} 37... Kf8 {[%clk 0:00:10]} 38.
Rxd5 {[%clk 0:01:18.2]} 38... Ke7 {[%clk 0:00:10.9]} 39. Rxb5 {[%clk 0:01:18.4]}
39... Rxd7 {[%clk 0:00:11]} 40. Ra5 {[%clk 0:01:18.8]} 40... Rd1+ {[%clk
0:00:10.7]} 41. Kh2 {[%clk 0:01:17.1]} 41... g5 {[%clk 0:00:10.3]} 42. Rxa4
{[%clk 0:01:16.5]} 42... Rd3 {[%clk 0:00:10.9]} 43. Ra6 {[%clk 0:01:16]} 43...
h5 {[%clk 0:00:09.3]} 44. b5 {[%clk 0:01:13.2]} 44... Rb3 {[%clk 0:00:09.8]} 45.
a4 {[%clk 0:01:13.1]} 45... h4 {[%clk 0:00:10.3]} 46. b6 {[%clk 0:01:05.4]}
46... f5 {[%clk 0:00:10]} 47. a5 {[%clk 0:01:05.5]} 47... Rb2 {[%clk 0:00:07.5]}
48. Ra7+ {[%clk 0:01:03.4]} 48... Kd6 {[%clk 0:00:07.1]} 49. Rg7 {[%clk
0:01:00.3]} 49... f4 {[%clk 0:00:07.7]} 50. Rxg5 {[%clk 0:00:48.5]} 50... f3
{[%clk 0:00:08]} 51. Kg1 {[%clk 0:00:48.8]} 51... fxg2 {[%clk 0:00:03.7]} 52.
Rxg2 {[%clk 0:00:46.4]} 52... Rb1+ {[%clk 0:00:04.2]} 53. Kh2 {[%clk 0:00:46.5]}
53... Kc6 {[%clk 0:00:04.9]} 54. Ra2 {[%clk 0:00:43.1]} 54... Kb7 {[%clk
0:00:03.5]} 55. a6+ {[%clk 0:00:42.1]} 55... Ka8 {[%clk 0:00:04.1]} 56. b7+
{[%clk 0:00:41.4]} 56... Ka7 {[%clk 0:00:04.4]} 57. Ra4 {[%clk 0:00:32.2]} 57...
Rb3 {[%clk 0:00:04.3]} 58. Kg2 {[%clk 0:00:26.2]} 58... Rg3+ {[%clk 0:00:03.8]}
59. Kh2 {[%clk 0:00:26.4]} 59... Rb3 {[%clk 0:00:04.1]} 60. Ra5 {[%clk
0:00:19.5]} 60... Rb2+ {[%clk 0:00:03.4]} 61. Kg1 {[%clk 0:00:19.6]} 61... Rb3
{[%clk 0:00:04]} 62. Kg2 {[%clk 0:00:19.5]} 62... Rg3+ {[%clk 0:00:04.1]} 63.
Kf2 {[%clk 0:00:15.7]} 63... Rb3 {[%clk 0:00:05]} 64. Ra4 {[%clk 0:00:14.9]}
64... Rb5 {[%clk 0:00:02.2]} 65. Kf3 {[%clk 0:00:14.5]} 65... Rb3+ {[%clk
0:00:02.7]} 66. Kg4 {[%clk 0:00:15]} 66... Rb6 {[%clk 0:00:03.4]} 67. Kxh4
{[%clk 0:00:15.2]} 67... Rh6+ {[%clk 0:00:04]} 68. Kg4 {[%clk 0:00:14.4]} 68...
Rh8 {[%clk 0:00:04.9]} 69. h4 {[%clk 0:00:14.6]} 69... Rg8+ {[%clk 0:00:05.6]}
70. Kh3 {[%clk 0:00:14.8]} 70... Rh8 {[%clk 0:00:06.2]} 71. Ra5 {[%clk
0:00:15.5]} 71... Rg8 {[%clk 0:00:06.4]} 72. h5 {[%clk 0:00:15.6]} 72... Rg1
{[%clk 0:00:07.2]} 73. Kh4 {[%clk 0:00:15.2]} 73... Rh1+ {[%clk 0:00:07.6]} 74.
Kg4 {[%clk 0:00:15.6]} 74... Rg1+ {[%clk 0:00:08.5]} 75. Kh4 {[%clk 0:00:16.1]}
75... Rb1 {[%clk 0:00:09.4]} 76. Kg5 {[%clk 0:00:16.5]} 76... Rg1+ {[%clk
0:00:09.8]} 77. Kh6 {[%clk 0:00:16.9]} 77... Rb1 {[%clk 0:00:10.7]} 78. Kh7
{[%clk 0:00:16.5]} 78... Rh1 {[%clk 0:00:11]} 79. h6 {[%clk 0:00:16.9]} 79...
Rb1 {[%clk 0:00:11.6]} 80. Kh8 {[%clk 0:00:16.3]} 80... Rh1 {[%clk 0:00:11.8]}
81. h7 {[%clk 0:00:16.7]} 81... Rg1 {[%clk 0:00:12.3]} 82. Rf5 {[%clk
0:00:15.4]} 1-0

[Event "Late-Titled-Tuesday-Blitz-February-06-2024"]
[Site "Chess.com"]
[Date "2024.02.06"]
[Round "2"]
[White "ural58"]
[Black "Cronos97"]
[Result "1-0"]
[WhiteElo "2476"]
[BlackElo "2183"]
[TimeControl "180+1"]
[EndTime "14:12:53 PST"]
[Termination "ural58 won by resignation"]

1. e4 {[%clk 0:03:00.9]} 1... c5 {[%clk 0:02:59.5]} 2. b3 {[%clk 0:03:00.4]}
2... a6 {[%clk 0:02:55]} 3. d4 {[%clk 0:02:58.4]} 3... cxd4 {[%clk 0:02:50.5]}
4. Qxd4 {[%clk 0:02:58.4]} 4... Nc6 {[%clk 0:02:48.4]} 5. Qd2 {[%clk 0:02:58.3]}
5... Nf6 {[%clk 0:02:43.9]} 6. Nc3 {[%clk 0:02:58.3]} 6... d6 {[%clk 0:02:39.4]}
7. Bb2 {[%clk 0:02:57.7]} 7... e6 {[%clk 0:02:32.5]} 8. O-O-O {[%clk 0:02:56.6]}
8... Be7 {[%clk 0:02:32.7]} 9. f4 {[%clk 0:02:47.2]} 9... O-O {[%clk 0:02:33.1]}
10. Nf3 {[%clk 0:02:47]} 10... b5 {[%clk 0:02:28.7]} 11. e5 {[%clk 0:02:44.1]}
11... b4 {[%clk 0:02:22.4]} 12. exf6 {[%clk 0:02:41.8]} 12... bxc3 {[%clk
0:02:10.1]} 13. Qxc3 {[%clk 0:02:41]} 13... Bxf6 {[%clk 0:02:05.2]} 14. Qxc6
{[%clk 0:02:40.5]} 1-0

[Event "Late-Titled-Tuesday-Blitz-February-06-2024"]
[Site "Chess.com"]
[Date "2024.02.06"]
[Round "2"]
[White "wanyaland"]
[Black "mjelcic"]
[Result "1-0"]
[WhiteElo "2488"]
[BlackElo "2204"]
[TimeControl "180+1"]
[EndTime "14:13:08 PST"]
[Termination "wanyaland won by resignation"]

1. d4 {[%clk 0:02:59.8]} 1... d5 {[%clk 0:02:59.9]} 2. c4 {[%clk 0:02:59.4]}
2... c6 {[%clk 0:02:59.6]} 3. Nc3 {[%clk 0:02:57.4]} 3... Nf6 {[%clk 0:02:57.7]}
4. Nf3 {[%clk 0:02:54.6]} 4... e6 {[%clk 0:02:57.5]} 5. e3 {[%clk 0:02:54.5]}
5... Be7 {[%clk 0:02:49.9]} 6. Bd3 {[%clk 0:02:54.3]} 6... dxc4 {[%clk
0:02:49.4]} 7. Bxc4 {[%clk 0:02:54.1]} 7... O-O {[%clk 0:02:50]} 8. e4 {[%clk
0:02:54]} 8... b5 {[%clk 0:02:41.8]} 9. Bd3 {[%clk 0:02:53.5]} 9... Bb7 {[%clk
0:02:41.9]} 10. e5 {[%clk 0:02:53.4]} 10... Nd5 {[%clk 0:02:37.1]} 11. h4 {[%clk
0:02:52.8]} 11... c5 {[%clk 0:02:34]} 12. Bxh7+ {[%clk 0:02:50.8]} 12... Kxh7
{[%clk 0:02:21]} 13. Ng5+ {[%clk 0:02:50.6]} 13... Bxg5 {[%clk 0:02:06.3]} 14.
hxg5+ {[%clk 0:02:50.1]} 14... Kg8 {[%clk 0:02:06]} 15. Qh5 {[%clk 0:02:45.6]}
15... f5 {[%clk 0:01:58.8]} 16. g6 {[%clk 0:02:42.9]} 1-0